bitfinex/quotes_ETHUSD_20220118
["timestamp","ask_amount","ask_price","bid_price","bid_amount"]
[1642499481939,0.1262,3169.7,3169.4,1.25789132]
[1642499482338,0.1262,3170.1,3169.5,0.0022737]
[1642499482740,0.00113684,3170.1,3169.5,0.0022737]
[1642499482941,0.00113684,3170.1,3169.6,0.03255147]
[1642499483138,0.00113684,3170.1,3170.0,1.56320772]
[1642499483338,0.00113684,3170.1,3170.0,1.86320772]
[1642499484595,0.00113684,3170.1,3170.0,5.11320772]
[1642499484795,0.00113684,3170.1,3170.0,5.23920772]
[1642499484995,0.00113684,3170.1,3170.0,6.23920772]
[1642499485402,0.00113684,3170.1,3170.0,12.33137952]
[1642499485597,0.00113684,3170.1,3170.0,12.63137952]
[1642499485796,0.00113684,3170.1,3170.0,12.6970167]
[1642499485998,1.1487,3171.9,3170.1,5.35]
[1642499486197,1.1487,3171.9,3170.3,18.47]
[1642499486398,0.0096632,3171.8,3170.6,0.78814]
[1642499486602,0.0096632,3171.8,3170.7,4.07033131]
[1642499486801,0.00909478,3171.7,3170.7,4.07033131]
[1642499486999,0.00909478,3171.7,3171.4,1.53704052]
[1642499487199,0.00852635,3171.6,3171.4,1.53704052]
[1642499487436,0.00852635,3171.6,3171.4,1.83704052]
[1642499487639,1.12522531,3172.0,3171.5,1.46120095]
[1642499488037,0.01023162,3171.9,3171.5,2.46120095]
[1642499488237,0.01023162,3171.9,3171.5,1.46120095]
[1642499488439,0.0096632,3171.8,3171.4,1.83704052]
[1642499488642,0.0096632,3171.8,3171.4,0.3]
[1642499488840,0.00909478,3171.7,3171.3,0.126]
[1642499489247,0.00852635,3171.6,3171.3,0.126]
[1642499489541,0.00795793,3171.5,3171.3,0.126]
[1642499489742,0.00795793,3171.5,3171.3,1.42420453]
[1642499489941,0.00738951,3171.4,3171.3,1.42420453]
[1642499490343,0.00738951,3171.4,3171.2,1.5431]
[1642499490542,0.00738951,3171.4,3171.2,0.755]
[1642499490744,0.00682108,3171.3,3171.2,0.755]
[1642499491088,0.00682108,3171.3,3171.2,0.455]
[1642499491492,1.30616515,3171.3,3170.8,0.881]
[1642499491691,1.30616515,3171.3,3170.8,0.126]
[1642499491895,0.13225266,3171.2,3170.8,0.126]
[1642499492291,0.00568424,3171.1,3170.8,0.126]
[1642499492491,0.126,3171.0,3170.8,0.126]
[1642499492693,0.13111581,3171.0,3170.8,0.126]
[1642499492895,0.00454739,3170.9,3170.8,0.126]
[1642499493093,1.20536085,3170.8,3170.4,1.1362382]
[1642499493294,1.33136085,3170.8,3170.2,3.32978306]
[1642499493493,0.00341054,3170.7,3169.9,3.45578306]
[1642499493899,0.00284212,3170.6,3169.9,3.45578306]
[1642499494097,0.00284212,3170.6,3170.0,0.78838]
[1642499494298,1.20124774,3170.1,3169.9,0.426]
[1642499494499,1.20124774,3170.1,3170.0,1.3]
[1642499494697,1.20124774,3170.1,3170.0,0.3]
[1642499494940,1.20124774,3170.1,3169.8,1.426]
[1642499495139,1.20124774,3170.1,3170.0,0.53871667]
[1642499495341,1.20124774,3170.1,3170.0,0.83871667]
[1642499496339,1.20124774,3170.1,3170.0,0.53871667]
[1642499497739,1.62724774,3170.1,3170.0,0.53871667]
[1642499497939,1.62724774,3170.1,3169.9,0.00113685]
[1642499498139,5.326,3170.0,3169.9,0.00113685]
[1642499498341,5.326,3170.0,3169.1,0.00568423]
[1642499498588,5.326,3170.0,3168.9,0.00682108]
[1642499498589,0.01277444,3169.9,3168.9,0.00682108]
[1642499498791,0.01105416,3169.7,3168.8,0.0073895]
[1642499499190,1.53335268,3169.8,3168.8,0.0073895]
[1642499499390,0.1262,3169.7,3168.9,0.53894037]
[1642499499795,1.52229535,3169.6,3169.0,0.00625266]
[1642499499994,1.37492469,3169.3,3169.0,1.25246326]
[1642499500193,0.1262,3169.5,3169.0,1.25246326]
[1642499500394,0.1262,3169.9,3169.1,0.00568423]
[1642499500691,0.12733685,3170.3,3169.1,0.00568423]
[1642499500894,0.12733685,3170.3,3169.2,0.53894037]
[1642499501092,0.78877,3170.2,3169.2,0.53894037]
[1642499501394,0.426,3170.1,3169.3,0.00454739]
[1642499501992,0.126,3170.1,3169.3,0.00454739]
[1642499502192,1.3607323,3169.5,3169.3,0.00454739]
[1642499502445,0.3,3169.5,3169.4,0.53894037]
[1642499502846,0.3,3169.5,3169.4,0.54291933]
[1642499503045,0.1262,3170.2,3169.4,0.54291933]
[1642499503444,0.1262,3170.2,3169.5,0.00341054]
[1642499503845,0.1262,3170.2,3169.5,0.54235091]
[1642499504048,0.30113685,3170.3,3169.5,0.54235091]
[1642499504049,1.17001633,3169.9,3169.5,0.54235091]
[1642499504248,1.17001633,3169.9,3169.6,0.00284212]
[1642499504648,0.12713685,3170.3,3169.6,4.58682871]
[1642499504649,0.00113685,3170.3,3169.6,4.58682871]
[1642499504846,0.00113685,3170.3,3169.6,1.5838616]
[1642499505051,0.00113685,3170.3,3169.7,0.00227369]
[1642499506392,1.32231994,3170.2,3169.7,0.00227369]
[1642499506591,0.3,3170.1,3169.8,0.53886978]
[1642499506790,0.126,3170.0,3169.8,0.53886978]
[1642499506992,0.126,3170.0,3169.9,0.00113684]
[1642499507194,5.476,3170.0,3169.9,0.00113684]
[1642499507597,5.776,3170.0,3169.9,0.00113684]
[1642499508193,5.776,3170.0,3169.7,0.00227369]
[1642499508396,0.3,3170.0,3169.7,0.00227369]
[1642499508600,0.426,3170.1,3169.7,0.00227369]
[1642499508795,1.50741651,3169.1,3169.0,0.00625266]
[1642499509696,1.50741651,3169.1,3168.9,0.00682108]
[1642499509946,1.50741651,3169.1,3168.5,1.3531163]
[1642499509947,2.40321651,3169.1,3168.5,0.75493738]
[1642499510343,2.40321651,3169.1,3168.6,0.00170527]
[1642499510544,2.70321651,3169.1,3168.6,0.00170527]
[1642499510946,2.70321651,3169.1,3168.4,0.00284212]
[1642499511950,1.80741651,3169.1,3168.5,0.53895732]
[1642499512348,1.50741651,3169.1,3168.5,0.83895732]
[1642499513593,1.50741651,3169.1,3168.6,0.53895732]
[1642499513998,1.50741651,3169.1,3168.7,0.00113685]
[1642499515099,1.2285,3169.8,3168.8,0.66515732]
[1642499515304,0.3,3169.8,3168.8,0.66515732]
[1642499515500,0.00454739,3169.7,3168.8,0.66515732]
[1642499515700,0.1262,3169.6,3168.8,0.53895732]
[1642499515901,0.13017896,3169.6,3168.8,1.65168226]
[1642499516105,0.00341054,3169.5,3168.9,1.54722922]
[1642499516301,0.00341054,3169.5,3168.9,2.08618654]
[1642499516501,0.00284212,3169.4,3168.9,2.38618654]
[1642499516702,0.00284212,3169.4,3168.9,3.38618654]
[1642499516901,0.00227369,3169.3,3169.0,0.00325659]
[1642499517100,0.00227369,3169.3,3168.9,3.38618654]
[1642499517351,1.12837018,3169.2,3168.9,1.83895732]
[1642499517544,1.12837018,3169.2,3168.9,0.83895732]
[1642499517742,0.00113685,3169.1,3169.0,0.53895732]
[1642499519150,0.00113685,3169.1,3169.0,6.37015732]
[1642499519549,0.00113685,3169.1,3169.0,7.37015732]
[1642499520149,0.00113685,3169.1,3169.0,2.12015732]
[1642499520552,0.00113685,3169.1,3169.0,1.12015732]
[1642499520948,0.00113685,3169.1,3169.0,0.99395732]
[1642499521192,0.00113685,3169.1,3169.0,0.53895732]
[1642499521594,0.97513685,3169.1,3169.0,0.53895732]
[1642499521991,4.02513685,3169.1,3169.0,0.53895732]
[1642499522496,4.15133685,3169.1,3168.8,0.53895732]
[1642499522691,0.1262,3169.0,3168.8,0.53895732]
[1642499524850,0.00113685,3169.1,3168.9,0.1262]
[1642499525043,0.00113685,3169.1,3168.8,0.83895732]
[1642499525443,0.00113685,3169.1,3169.0,0.53895732]
[1642499526743,0.00113685,3169.1,3168.8,0.53895732]
[1642499528044,0.1262,3169.0,3168.8,0.53895732]
[1642499528897,0.00113685,3169.1,3168.8,0.53895732]
[1642499532360,0.79017685,3169.1,3168.8,0.53895732]
[1642499532748,4.71973449,3169.1,3168.8,0.53895732]
[1642499533146,1.0,3169.0,3168.8,0.53895732]
[1642499533349,5.4762,3168.9,3168.8,0.53895732]
[1642499533555,6.79906001,3168.9,3168.8,0.53895732]
[1642499533749,10.6008354,3168.9,3168.8,0.53895732]
[1642499533950,10.6008354,3168.9,3168.7,0.00113685]
[1642499534150,6.35,3168.8,3168.7,0.00113685]
[1642499534350,6.35,3168.8,3167.7,0.89821197]
[1642499534351,10.36932045,3168.8,3167.9,0.00568423]
[1642499534552,0.78926,3168.5,3167.8,0.00625266]
[1642499534752,4.06121432,3168.4,3167.8,0.00625266]
[1642499534953,0.1262,3168.3,3167.8,0.00625266]
[1642499535152,1.16575173,3168.2,3167.7,0.00682108]
[1642499535355,0.1262,3168.1,3167.7,0.00682108]
[1642499535555,1.46575173,3168.2,3167.7,0.00682108]
[1642499536200,0.3,3168.2,3167.7,0.00682108]
[1642499536397,0.1262,3168.6,3167.7,0.00682108]
[1642499536596,0.1262,3169.0,3168.1,1.43621479]
[1642499536996,0.1262,3169.0,3168.2,0.00397896]
[1642499537298,0.1262,3169.0,3167.7,0.00682108]
[1642499537299,1.39472212,3168.7,3167.7,0.00682108]
[1642499537498,1.52092212,3168.7,3167.8,2.69526634]
[1642499537897,1.52092212,3168.7,3167.9,2.70095057]
[1642499538097,1.52092212,3168.7,3167.9,0.00568423]
[1642499538299,1.02092212,3168.7,3168.0,0.00511581]
[1642499538498,0.89472212,3168.7,3167.7,0.00682108]
[1642499538703,0.89472212,3168.7,3167.8,2.69530074]
[1642499538900,1.02092212,3168.7,3167.8,2.69530074]
[1642499539100,1.02092212,3168.7,3167.9,0.00568423]
[1642499539701,0.78917,3168.6,3167.7,0.00682108]
[1642499539947,1.08917,3168.6,3167.8,2.69538841]
[1642499540346,1.08917,3168.6,3167.9,0.00568423]
[1642499540946,1.08917,3168.6,3167.7,0.00682108]
[1642499541145,1.08917,3168.6,3167.8,2.69536732]
[1642499541546,1.08917,3168.6,3167.9,0.00568423]
[1642499542146,1.08917,3168.6,3167.4,1.4307976]
[1642499542346,1.08917,3168.6,3167.5,2.70331487]
[1642499542547,0.1262,3168.5,3167.6,2.69535694]
[1642499542846,0.0762,3168.5,3167.7,0.00682108]
[1642499543046,0.0762,3168.5,3167.8,2.69535694]
[1642499543446,0.0762,3168.5,3167.9,0.00568423]
[1642499544002,3.9855982,3168.5,3167.5,0.00795793]
[1642499544203,0.78922,3168.4,3167.6,2.69556588]
[1642499544400,0.1262,3168.3,3167.6,2.69556588]
[1642499544598,0.1262,3168.3,3167.7,0.00682108]
[1642499545000,1.50237402,3167.5,3167.3,1.45296806]
[1642499545200,0.1262,3168.3,3167.6,1.90902974]
[1642499545201,1.39119367,3167.8,3167.6,1.90902974]
[1642499545599,1.69119367,3167.8,3167.7,0.00682108]
[1642499546799,1.69119367,3167.8,3167.7,2.7022767]
[1642499547002,1.39119367,3167.8,3167.7,2.7022767]
[1642499547645,1.69119367,3167.8,3167.7,2.7022767]
[1642499547846,1.39119367,3167.8,3167.7,2.7022767]
[1642499548043,1.69119367,3167.8,3167.7,2.7022767]
[1642499548248,1.39119367,3167.8,3167.7,2.7022767]
[1642499549252,1.39119367,3167.8,3167.7,0.00682108]
[1642499549449,1.39996376,3167.8,3167.7,0.00682108]
[1642499549848,4.74996376,3167.8,3167.7,0.00682108]
[1642499550048,5.04996376,3167.8,3167.7,0.00682108]
[1642499551100,6.04996376,3167.8,3167.7,0.00682108]
[1642499551298,5.04996376,3167.8,3167.7,0.00682108]
[1642499551699,6.04996376,3167.8,3167.7,0.00682108]
[1642499554415,6.34996376,3167.8,3167.7,0.00682108]
[1642499554852,8.29996376,3167.8,3167.7,0.00682108]
[1642499555445,6.99996376,3167.8,3167.7,0.00682108]
[1642499555647,3.25,3167.7,3166.8,0.02828582]
[1642499555846,0.78946,3167.5,3166.8,0.02828582]
[1642499556047,1.08946,3167.5,3166.9,0.00454739]
[1642499556245,1.40315124,3167.1,3166.9,0.00454739]
[1642499556459,1.70315124,3167.1,3166.9,0.00454739]
[1642499556645,0.3,3167.1,3166.9,0.00454739]
[1642499557152,0.1262,3167.4,3167.0,0.53929693]
[1642499557346,1.21561,3167.6,3167.0,0.53929693]
[1642499557546,0.4262,3167.6,3167.1,0.00341054]
[1642499557746,0.1262,3167.7,3167.1,0.00341054]
[1642499558047,1.60098584,3167.7,3167.2,1.46164918]
[1642499558248,1.47478584,3167.7,3167.2,1.46164918]
[1642499558448,1.47478584,3167.7,3167.3,0.54157062]
[1642499558902,1.47478584,3167.7,3167.4,0.00170527]
[1642499559500,0.00238798,3167.6,3167.4,0.00170527]
[1642499559901,0.30238798,3167.6,3167.5,0.53929693]
[1642499560301,0.30238798,3167.6,3167.5,0.54043378]
[1642499561302,0.30238798,3167.6,3167.5,0.00113685]
[1642499561303,0.00238798,3167.6,3167.5,0.00113685]
[1642499561702,0.00238798,3167.6,3167.4,0.00170527]
[1642499562101,0.00238798,3167.6,3166.8,1.02828582]
[1642499562367,0.00238798,3167.6,3166.9,0.30284212]
[1642499562553,0.00238798,3167.6,3167.0,0.455]
[1642499562752,0.00238798,3167.6,3167.0,0.46160081]
[1642499562952,0.00238798,3167.6,3167.1,0.00170527]
[1642499563155,0.00238798,3167.6,3167.2,0.455]
[1642499563354,0.00238798,3167.6,3167.3,1.49858797]
[1642499563555,0.00238798,3167.6,3167.3,2.49858797]
[1642499563758,0.00238798,3167.6,3167.4,0.455]
[1642499564156,0.00238798,3167.6,3167.5,4.03922956]
[1642499564356,0.00238798,3167.6,3167.5,4.62042956]
[1642499564558,0.00534848,3167.6,3167.5,5.62042956]
[1642499564973,0.00534848,3167.6,3167.5,2.12042956]
[1642499565160,0.00534848,3167.6,3167.5,1.12042956]
[1642499565760,0.00534848,3167.6,3167.5,0.53922956]
[1642499566599,0.00534848,3167.6,3167.5,3.03922956]
[1642499567198,0.00534848,3167.6,3167.5,4.03922956]
[1642499568198,0.00534848,3167.6,3167.5,3.03922956]
[1642499568399,0.00534848,3167.6,3167.5,4.03922956]
[1642499568600,0.00534848,3167.6,3167.5,3.03922956]
[1642499569204,0.00534848,3167.6,3167.5,0.53922956]
[1642499569404,0.00985718,3167.6,3167.5,0.53922956]
[1642499570046,0.00985718,3167.6,3167.5,3.23472466]
[1642499570646,0.1262,3168.5,3167.6,0.01186376]
[1642499571050,0.00454738,3168.4,3167.6,0.01186376]
[1642499571250,0.1219944,3168.3,3167.7,3.23472466]
[1642499571449,0.12597336,3168.3,3167.7,3.53472466]
[1642499571648,0.00341054,3168.2,3167.8,2.6954951]
[1642499571850,0.1262,3168.1,3167.8,2.6954951]
[1642499572050,0.00284211,3168.1,3167.8,2.6954951]
[1642499572250,0.1262,3168.8,3167.8,2.6954951]
[1642499572251,0.00227369,3168.0,3167.8,2.6954951]
[1642499572651,0.00170527,3167.9,3167.8,2.6954951]
[1642499572854,0.00170527,3167.9,3167.8,4.05793628]
[1642499573350,0.00170527,3167.9,3167.8,2.6954951]
[1642499573596,0.00170527,3167.9,3167.8,3.6954951]
[1642499573800,0.00170527,3167.9,3167.8,2.6954951]
[1642499574399,1.37904589,3167.9,3167.8,2.6954951]
[1642499575000,0.00480943,3167.9,3167.8,2.6954951]
[1642499576199,0.00480943,3167.9,3167.8,4.14053034]
[1642499576602,0.00480943,3167.9,3167.8,2.6954951]
[1642499577002,0.00480943,3167.9,3167.8,3.6954951]
[1642499577357,0.00480943,3167.9,3167.8,2.6954951]
[1642499577745,0.00480943,3167.9,3167.8,4.22079104]
[1642499577948,0.00480943,3167.9,3167.8,2.6954951]
[1642499580352,1.43950941,3167.9,3167.8,2.6954951]
[1642499580552,0.00480943,3167.9,3167.8,2.6954951]
[1642499582604,0.00480943,3167.9,3167.8,5.31042233]
[1642499582801,0.00480943,3167.9,3167.8,9.07345939]
[1642499583201,0.00480943,3167.9,3167.8,5.76542233]
[1642499583404,0.00480943,3167.9,3167.8,8.51542233]
[1642499583601,0.00480943,3167.9,3167.8,9.86238939]
[1642499583809,0.00480943,3167.9,3167.8,3.1504951]
[1642499584009,0.00480943,3167.9,3167.8,4.04905681]
[1642499584506,0.01298328,3167.9,3167.8,4.04905681]
[1642499584950,0.01298328,3167.9,3167.8,7.51159649]
[1642499585150,0.01298328,3167.9,3167.8,8.81159649]
[1642499585553,3.9564,3169.6,3167.9,0.01111672]
[1642499585753,1.73454634,3169.7,3169.3,1.210404]
[1642499585953,0.0073895,3169.2,3168.8,0.455]
[1642499586349,0.00682108,3169.1,3168.9,2.8209986]
[1642499586550,0.00682108,3169.1,3169.0,1.0]
[1642499586750,1.60834634,3169.7,3169.0,1.0]
[1642499586952,1.44369441,3169.1,3168.8,0.455]
[1642499587155,1.44369441,3169.1,3168.7,0.1262]
[1642499587351,0.1262,3169.0,3168.7,0.1262]
[1642499587553,1.44369441,3169.1,3168.7,0.1262]
[1642499587751,0.00568423,3168.9,3168.7,0.1262]
[1642499587952,1.44369441,3169.1,3168.8,2.69490572]
[1642499587953,0.00625265,3169.0,3168.8,2.69490572]
[1642499588151,1.44369441,3169.1,3168.8,0.3]
[1642499588351,0.1262,3169.6,3168.8,0.3]
[1642499588603,0.00625265,3169.0,3168.9,0.5389712]
[1642499590403,1.26685831,3169.0,3168.9,0.5389712]
[1642499590806,0.00625265,3169.0,3168.9,0.5389712]
[1642499591806,0.00625265,3169.0,3168.9,3.6419314]
[1642499592109,0.00625265,3169.0,3168.9,3.667943]
[1642499592359,0.00625265,3169.0,3168.9,4.667943]
[1642499593451,0.00625265,3169.0,3168.9,5.122943]
[1642499594153,5.265e-05,3169.0,3168.9,5.122943]
[1642499594355,5.265e-05,3169.0,3168.9,13.44863945]
[1642499594554,0.1262,3170.2,3169.0,5.3]
[1642499594754,0.126,3170.5,3169.3,0.78844]
[1642499594953,0.00625266,3170.1,3169.4,0.74748579]
[1642499595154,0.00625266,3170.1,3169.4,1.74748579]
[1642499595354,0.12632,3170.6,3169.4,1.81326316]
[1642499595355,0.00568424,3170.0,3169.4,1.81326316]
[1642499595554,0.00568424,3170.0,3169.5,1.26834916]
[1642499595756,0.00511582,3169.9,3169.6,1.96385469]
[1642499596198,1.11772183,3170.5,3169.6,1.96385469]
[1642499596199,0.00454739,3169.8,3169.6,2.96385469]
[1642499596606,0.00397897,3169.7,3169.6,3.75229469]
[1642499596901,0.00795793,3169.7,3169.6,6.19884792]
[1642499597103,0.00795793,3169.7,3169.6,6.07284792]
[1642499597302,0.00795793,3169.7,3169.6,6.35029894]
[1642499599503,0.00795793,3169.7,3169.6,7.46147122]
[1642499601049,0.05422427,3169.7,3169.6,7.46147122]
[1642499604003,0.05422427,3169.7,3169.6,4.48799817]
[1642499605803,0.05422427,3169.7,3169.6,1.9939712]
[1642499606008,0.05422427,3169.7,3169.6,0.5389712]
[1642499607454,0.05422427,3169.7,3169.5,0.5389712]
[1642499607860,0.00341054,3169.6,3169.5,0.5389712]
[1642499608054,0.00341054,3169.6,3169.5,0.8389712]
[1642499608858,0.00341054,3169.6,3169.5,0.5389712]
[1642499609059,2.27961054,3169.6,3169.5,0.5389712]
[1642499609260,0.12961054,3169.6,3169.5,0.5389712]
[1642499609762,1.57051993,3169.6,3169.5,0.5389712]
[1642499610961,1.57051993,3169.6,3169.1,0.5389712]
[1642499611202,0.1262,3169.5,3169.1,0.8389712]
[1642499611398,0.12904212,3169.5,3169.1,0.8389712]
[1642499611597,0.0022737,3169.4,3169.1,0.8389712]
[1642499611999,0.1262,3169.5,3169.1,0.8389712]
[1642499612000,0.00170527,3169.3,3169.1,0.8389712]
[1642499612200,0.00170527,3169.3,3169.2,0.5389712]
[1642499612402,0.1262,3169.5,3169.2,0.5389712]
[1642499612599,0.1262,3169.5,3169.2,0.8389712]
[1642499612800,0.0022737,3169.4,3169.2,0.8389712]
[1642499613201,0.00170527,3169.3,3169.2,0.8389712]
[1642499614003,0.00170527,3169.3,3169.2,0.5389712]
[1642499614204,0.00170527,3169.3,3169.2,0.8389712]
[1642499614504,0.00170527,3169.3,3169.2,2.13474726]
[1642499614955,0.1262,3169.5,3169.2,2.13474726]
[1642499615148,0.04626634,3169.7,3169.3,2.99215836]
[1642499615351,0.04626634,3169.7,3169.3,3.29215836]
[1642499615549,0.00170527,3169.6,3169.3,3.29215836]
[1642499615748,0.00170527,3169.6,3169.3,0.3]
[1642499615951,0.00113685,3169.5,3169.2,2.13474726]
[1642499616150,0.00113685,3169.5,3169.2,3.13474726]
[1642499616349,0.00113685,3169.5,3169.3,0.5389712]
[1642499616549,0.00113685,3169.5,3169.3,0.8389712]
[1642499617749,0.00113685,3169.5,3168.9,3.9915]
[1642499617954,0.00113685,3169.5,3168.9,4.2915]
[1642499618151,0.00113685,3169.5,3169.0,0.00170527]
[1642499618598,1.43930286,3169.2,3169.0,0.00170527]
[1642499618804,0.00113685,3169.5,3169.0,0.00170527]
[1642499619204,0.00113685,3169.5,3168.9,2.94563928]
[1642499619409,0.00113685,3169.5,3168.9,0.00227369]
[1642499619804,0.00113685,3169.5,3168.9,2.94082799]
[1642499620008,0.00113685,3169.5,3168.9,3.24082799]
[1642499651112,0.00215074,3170.0,3169.9,2.92997988]
[1642499651310,0.00215074,3170.0,3169.8,1.4565558]
[1642499652553,1.83328058,3170.4,3169.6,0.00113685]
[1642499656223,1.35238887,3169.9,3169.7,0.00284212]
[1642499656421,2.926,3169.8,3169.7,0.00284212]
[1642499656620,3.226,3169.8,3169.5,0.00397897]
[1642499657523,2.95652117,3169.8,3169.6,0.53895766]
[1642499657723,2.926,3169.8,3169.6,0.53895766]
[1642499657922,0.126,3169.8,3169.7,0.00284212]
[1642499658124,1.35238887,3169.9,3169.7,0.00284212]
[1642499659226,1.35238887,3169.9,3169.5,0.00397897]
[1642499659883,1.65238887,3169.9,3169.5,0.00397897]
[1642499814424,0.3,3166.2,3166.1,0.0020384]
[1642499820879,10.70375148,3166.2,3166.1,0.0020384]
[1642499821122,5.3,3166.1,3166.0,0.00045084]
[1642499821322,9.34287807,3166.1,3166.0,0.00045084]
[1642499821522,5.3,3166.0,3165.4,1.0]
[1642499821722,1.29935736,3165.5,3165.4,1.0]
[1642499821929,2.6181775,3165.5,3165.4,1.0]
[1642499822123,2.76192014,3165.5,3165.4,0.0001]
[1642499822336,2.76192014,3165.5,3164.6,0.60606312]
[1642499822337,3.65,3165.4,3164.6,0.60606312]
[1642499822525,3.65,3165.4,3164.6,0.47976312]
[1642499822526,3.95,3165.4,3164.6,0.47976312]
[1642499822722,3.95,3165.4,3164.7,0.00795792]
[1642499822924,0.78995,3165.3,3164.7,0.00795792]
[1642499823123,0.1263,3165.2,3164.7,0.00795792]
[1642499823324,0.1263,3165.2,3164.3,0.02828582]
[1642499823325,0.1263,3165.3,3164.6,0.00852635]
[1642499825975,0.1263,3165.3,3164.4,0.0096632]
[1642499826775,1.47488706,3164.5,3164.4,0.0096632]
[1642499827177,1.2663,3165.3,3164.4,0.0096632]
[1642499828176,1.38658155,3165.4,3164.9,2.51257461]
[1642499828376,1.38658155,3165.4,3165.0,0.1263]
[1642499828620,1.38658155,3165.4,3165.0,0.00625265]
[1642499828823,1.38658155,3165.4,3165.1,0.00568423]
[1642499829025,1.38658155,3165.4,3165.0,0.00625265]
[1642499829224,1.38658155,3165.4,3165.2,2.08229449]
[1642499829624,1.38658155,3165.4,3165.3,2.08684187]
[1642499829823,1.38658155,3165.4,3165.3,0.00454738]
[1642499830227,1.38658155,3165.4,3165.3,2.08229449]
[1642499830424,4.1032,3165.8,3165.3,2.08229449]
[1642499830626,0.1263,3165.8,3165.3,0.00454738]
[1642499830826,0.1263,3165.9,3165.4,0.00397896]
[1642499831028,0.1263,3165.9,3165.1,0.00568423]
[1642499831228,0.1263,3165.9,3165.2,2.08229449]
[1642499831426,0.1263,3165.9,3165.1,0.00568423]
[1642499831631,0.1263,3165.9,3165.3,0.00454738]
[1642499831827,0.1263,3165.9,3165.5,2.70116396]
[1642499831828,1.16284192,3165.9,3165.5,2.70116396]
[1642499832027,1.16284192,3165.9,3165.6,2.08229449]
[1642499832228,1.16284192,3165.9,3165.6,2.0851366]
[1642499832474,1.16284192,3165.9,3165.7,0.00227369]
[1642499832673,3.182,3165.8,3165.7,0.00227369]
[1642499833476,3.182,3165.8,3165.1,2.10528686]
[1642499833678,3.182,3165.8,3165.2,2.10471844]
[1642499833879,1.44582816,3165.3,3165.2,0.00511581]
[1642499834078,1.44582816,3165.3,3164.9,0.1263]
[1642499834482,1.44582816,3165.3,3165.0,0.00625265]
[1642499834678,1.2598,3165.7,3165.0,0.00625265]
[1642499834879,1.2598,3165.7,3164.7,2.96383384]
[1642499835078,1.2598,3165.7,3164.8,0.0073895]
[1642499835079,1.5598,3165.7,3164.8,0.0073895]
[1642499835280,1.2598,3165.7,3164.8,0.0073895]
[1642499835483,1.2598,3165.7,3164.7,3.03342188]
[1642499835682,1.2598,3165.7,3164.8,0.0073895]
[1642499835879,1.2598,3165.7,3165.0,1.35781864]
[1642499835880,1.52367963,3165.5,3165.0,1.35781864]
[1642499836123,1.52367963,3165.5,3164.8,0.0073895]
[1642499836320,1.52367963,3165.5,3165.1,0.00568423]
[1642499836321,0.4263,3165.4,3165.1,0.00568423]
[1642499836522,0.4263,3165.4,3164.7,0.00795792]
[1642499837725,0.1263,3165.4,3164.7,2.98260256]
[1642499837925,0.1263,3165.4,3165.1,1.36610444]
[1642499838126,0.4263,3165.7,3165.2,2.97019903]
[1642499838323,0.4263,3165.7,3165.2,2.97531484]
[1642499838523,0.1263,3165.7,3165.5,1.18408282]
[1642499838727,3.482,3165.8,3165.5,1.18408282]
[1642499838925,3.482,3165.8,3165.6,0.00284211]
[1642499839131,3.482,3165.8,3165.7,1.22111622]
[1642499839331,3.482,3165.8,3165.6,0.00284211]
[1642499839526,3.482,3165.8,3165.7,0.00227369]
[1642499839727,3.482,3165.8,3165.6,0.00284211]
[1642499839728,3.182,3165.8,3165.6,0.00284211]
[1642499840780,3.182,3165.8,3165.5,2.97394196]
[1642499840980,3.182,3165.8,3165.5,3.10024196]
[1642499841187,3.182,3165.8,3165.6,0.00284211]
[1642499841378,3.17846597,3165.8,3165.6,0.45784211]
[1642499841781,3.17846597,3165.8,3165.7,0.00227369]
[1642499842978,3.17846597,3165.8,3165.7,2.94227496]
[1642499843178,3.17846597,3165.8,3165.7,0.00227369]
[1642499845030,3.17846597,3165.8,3165.4,0.45897896]
[1642499845232,3.17846597,3165.8,3165.5,0.00341054]
[1642499847469,3.17846597,3165.8,3165.5,1.1875552]
[1642499847673,3.17846597,3165.8,3165.5,4.14410832]
[1642499847869,3.17846597,3165.8,3165.6,0.00284211]
[1642499848471,3.17846597,3165.8,3165.6,1.00284211]
[1642499848677,3.17846597,3165.8,3165.6,0.00284211]
[1642499848876,3.17846597,3165.8,3165.7,0.00227369]
[1642499849074,3.17846597,3165.8,3165.7,2.07927925]
[1642499849277,3.17846597,3165.8,3165.7,2.08155294]
[1642499849475,3.17846597,3165.8,3165.7,5.18532779]
[1642499849674,3.17846597,3165.8,3165.7,6.18532779]
[1642499849874,3.17846597,3165.8,3165.7,8.18913052]
[1642499850080,0.38,3166.0,3165.8,5.4263]
[1642499850276,0.38,3166.0,3165.9,6.44336672]
[1642499850478,0.38,3166.0,3165.9,8.74202151]
[1642499850677,0.38,3166.0,3165.9,8.86832151]
[1642499851122,0.38,3166.0,3165.9,3.95923404]
[1642499851325,0.38,3166.0,3165.9,2.66171609]
[1642499851719,0.38,3166.0,3165.9,0.12743684]
[1642499851720,0.5063,3166.0,3165.9,0.12743684]
[1642499853022,1.03935478,3166.0,3165.9,0.12743684]
[1642499853221,0.5063,3166.0,3165.9,0.12743684]
[1642499853421,1.03935478,3166.0,3165.9,0.12743684]
[1642499853626,1.33935478,3166.0,3165.9,0.00113684]
[1642499853830,1.63935478,3166.0,3165.9,0.00113684]
[1642499854025,1.1063,3166.0,3165.9,0.00113684]
[1642499854425,5.6563,3166.0,3165.9,0.00113684]
[1642499854625,1.1063,3166.0,3165.9,0.00113684]
[1642499855270,0.5063,3166.0,3165.9,0.00113684]
[1642499855670,0.8063,3166.0,3165.9,0.00113684]
[1642499856269,0.5063,3166.0,3165.9,0.00113684]
[1642499856670,0.38,3166.0,3165.9,0.00113684]
[1642499857872,0.5063,3166.0,3165.9,0.00113684]
[1642499858925,0.38,3166.0,3165.9,0.00113684]
[1642499860325,0.38,3166.0,3165.9,2.09137041]
[1642499860326,0.91347421,3166.0,3165.9,2.09137041]
[1642499860526,1.21347421,3166.0,3165.9,2.09137041]
[1642499860724,0.68,3166.0,3165.9,2.09137041]
[1642499861126,0.38,3166.0,3165.9,2.09137041]
[1642499861827,0.91365011,3166.0,3165.9,2.09137041]
[1642499862026,1.21365011,3166.0,3165.9,2.09137041]
[1642499862475,0.38,3166.0,3165.9,2.09137041]
[1642499863477,0.68,3166.0,3165.9,2.09137041]
[1642499863680,0.91372214,3166.0,3165.9,2.09137041]
[1642499865782,1.21372214,3166.0,3165.9,2.09077034]
[1642499867925,1.21372214,3166.0,3165.9,0.00113684]
[1642499867926,1.51372214,3166.0,3165.9,0.00113684]
[1642499868120,3.66372214,3166.0,3165.9,0.00113684]
[1642499868321,3.79002214,3166.0,3165.9,0.00113684]